bitfinex-derivatives/quotes_SOLF0:USTF0_20241127
["timestamp","ask_amount","ask_price","bid_price","bid_amount"]
[1732718800886,10.07787045,238.78,238.62,10.07787045]
[1732718801090,3.16,238.79,238.65,10.07787045]
[1732718801292,13.23787045,238.81,238.74,2.0938]
[1732718801491,13.23787045,238.81,238.65,10.07787045]
[1732718801791,3.16,238.81,238.71,2.0939]
[1732718801988,3.16,238.81,238.64,1.3035]
[1732718801989,10.07787045,238.8,238.64,11.38137045]
[1732718802388,2.0934,238.79,238.7,2.0941]
[1732718802588,3.16,238.81,238.64,1.3035]
[1732718802889,2.0933,238.8,238.64,1.3035]
[1732718803587,3.16,238.81,238.65,16.17209264]
[1732718803790,16.17209264,239.03,238.8,16.17209264]
[1732718803988,2.0916,238.99,238.88,2.0925]
[1732718804194,16.17209264,238.99,238.81,3.7754]
[1732718804585,0.63074492,238.98,238.81,3.7754]
[1732718804784,16.17209264,238.99,238.81,3.7754]
[1732718805095,2.0918,238.97,238.87,2.0925]
[1732718805292,1.26159392,238.98,238.87,2.0925]
[1732718805997,1.26159392,238.98,238.85,2.0927]
[1732718806291,16.17209264,238.95,238.81,3.7754]
[1732718806492,2.0922,238.92,238.81,4.6088]
[1732718806788,5.6938,238.94,238.81,2.0931]
[1732718806993,6.9987,238.94,238.81,2.0931]
[1732718807192,6.9987,238.94,238.82,2.093]
[1732718807193,2.0921,238.93,238.82,2.093]
[1732718807497,2.0921,238.93,238.73,3.732]
[1732718807498,3.8387,238.94,238.76,16.17209264]
[1732718807691,3.16,238.93,238.76,16.17209264]
[1732718808697,3.16,238.92,238.76,16.17209264]
[1732718808997,1.26159392,238.98,238.8,16.17209264]
[1732718809387,3.16,238.97,238.8,16.17209264]
[1732718810398,2.0921,238.93,238.82,2.093]
[1732718810594,2.0921,238.93,238.76,16.17209264]
[1732718811096,3.16,238.92,238.76,16.17209264]
[1732718811397,3.16,238.95,238.8,16.17209264]
[1732718811599,3.16,238.95,238.9,2.0923]
[1732718812094,3.16,238.95,238.8,16.17209264]
[1732718812993,3.16,238.95,238.92,2.0922]
[1732718814100,3.16,238.95,238.81,3.16]
[1732718815193,3.16,238.95,238.9,2.0923]
[1732718815592,3.16,238.95,238.88,2.0925]
[1732718816295,2.0926,238.88,238.73,3.732]
[1732718816800,3.26,238.87,238.73,3.732]
[1732718817696,2.0929,238.84,238.78,2.0933]
[1732718818196,3.26,238.87,238.73,2.5038]
[1732718818393,3.26,238.87,238.77,2.0935]
[1732718818594,3.26,238.87,238.73,2.5038]
[1732718819501,2.0927,238.86,238.8,2.0932]
[1732718819896,2.0927,238.86,238.73,2.5038]
[1732718820097,2.0927,238.86,238.79,2.0933]
[1732718820590,3.26,238.87,238.81,2.0931]
[1732718820794,3.26,238.93,238.76,16.17209264]
[1732718820997,3.26,238.95,238.77,1.2933]
[1732718821703,3.26,238.95,238.91,2.0923]
[1732718821998,16.17209264,238.98,238.8,16.17209264]
[1732718822205,3.26,238.98,238.88,2.0925]
[1732718822495,17.46129264,239.02,238.84,16.17209264]
[1732718822795,3.26,238.99,238.85,1.1991]
[1732718822999,3.26,238.99,238.85,2.4418]
[1732718823400,19.55259264,239.02,238.85,2.4418]
[1732718823591,3.26,239.01,238.85,2.4418]
[1732718823798,2.0917,238.98,238.91,2.0922]
[1732718824102,2.0917,238.98,238.85,2.4418]
[1732718824302,3.26,239.01,238.85,2.4418]
[1732718824502,2.0915,239.0,238.85,2.4418]
[1732718824999,3.26,239.01,238.85,2.4418]
[1732718825600,0.6306868,239.0,238.95,2.0919]
[1732718825804,0.6306868,239.0,238.85,2.4418]
[1732718826000,0.6306868,239.0,238.92,16.17209264]
[1732718826195,0.6306868,239.0,238.99,2.0916]
[1732718827006,5.818,239.14,238.97,2.4758]
[1732718827194,7.9083,239.14,238.97,2.4758]
[1732718827506,5.818,239.14,238.97,2.4758]
[1732718827806,2.0905,239.11,238.97,2.4758]
[1732718827995,5.818,239.14,238.97,2.4758]
[1732718828500,2.0904,239.13,238.97,2.4758]
[1732718828699,0.62548081,239.13,238.97,2.4758]
[1732718828899,2.0904,239.12,238.97,2.4758]
[1732718829407,2.0904,239.12,239.01,2.0913]
[1732718829599,5.818,239.14,238.97,2.4758]
[1732718830602,7.9083,239.14,239.02,2.0913]
[1732718830806,5.818,239.14,238.97,2.4758]
[1732718831108,16.17209264,239.11,238.97,2.4758]
[1732718831409,18.26269264,239.11,238.97,2.4758]
[1732718832000,18.26269264,239.11,239.04,2.0911]
[1732718832601,5.818,239.14,238.93,1.2451]
[1732718832602,16.17209264,239.07,238.93,1.2451]
[1732718833102,5.351,239.06,238.96,2.0917]
[1732718833306,3.26,239.06,238.93,1.2451]
[1732718833610,3.26,239.06,239.02,2.0913]
[1732718834099,3.26,239.06,238.93,1.2451]
[1732718834100,3.26,239.06,239.03,2.0912]
[1732718834304,3.26,239.11,238.94,16.17209264]
[1732718835105,17.41519264,239.15,238.94,16.17209264]
[1732718835310,1.2431,239.15,238.98,16.17209264]
[1732718835511,1.2431,239.15,238.99,5.8137]
[1732718836006,1.2431,239.15,239.11,2.0904]
[1732718836511,2.0899,239.18,239.11,2.0904]
[1732718837307,16.17209264,239.19,239.11,2.0904]
[1732718837612,2.09,239.17,239.11,2.0904]
[1732718838107,16.17209264,239.19,238.99,5.8137]
[1732718838308,3.26,239.2,239.02,16.17209264]
[1732718838511,16.17209264,239.23,239.02,16.17209264]
[1732718839104,2.0898,239.19,239.02,16.17209264]
[1732718839506,16.17209264,239.19,239.03,3.26]
[1732718839810,2.09,239.17,239.07,2.0908]
[1732718840012,16.17209264,239.15,238.99,2.5537]
[1732718840311,16.17209264,239.11,238.99,2.5537]
[1732718840506,16.17209264,239.07,238.93,1.2451]
[1732718840704,16.17209264,239.03,238.92,5.71008017]
[1732718840905,16.17209264,239.03,238.86,1.1969]
[1732718841704,18.26339264,239.03,238.86,1.1969]
[1732718841902,3.26,239.07,238.86,1.1969]
[1732718841903,19.43209264,239.07,238.86,1.1969]
[1732718842302,2.0911,239.04,238.86,1.1969]
[1732718843214,2.091,239.06,238.86,1.1969]
[1732718843410,19.43209264,239.07,238.86,2.45931976]
[1732718843707,16.17209264,239.07,238.86,2.45931976]
[1732718843908,2.0911,239.05,238.86,2.45931976]
[1732718844109,16.17209264,239.07,238.87,1.26241976]
[1732718844313,18.26299264,239.07,238.88,1.26241976]
[1732718844506,18.26299264,239.07,238.89,1.26241976]
[1732718844707,16.17209264,239.07,238.99,2.0915]
[1732718844906,16.17209264,239.07,238.89,16.17209264]
[1732718845113,16.17209264,239.07,238.9,1.2654255]
[1732718845404,16.17209264,239.07,238.89,16.17209264]
[1732718846205,16.17209264,239.07,238.87,2.54779056]
[1732718846409,2.0917,238.98,238.92,2.0921]
[1732718846615,16.17209264,239.03,238.86,4.4569]
[1732718847010,2.0916,239.0,238.93,2.092]
[1732718847207,16.17209264,239.03,238.86,4.4569]
[1732718847408,16.17209264,239.03,238.87,1.26786437]
[1732718847609,16.17209264,239.03,238.86,4.4569]
[1732718847810,16.17209264,239.03,238.87,1.26785812]
[1732718848011,16.17209264,239.03,238.86,4.4569]
[1732718848214,16.17209264,239.03,238.87,1.26744546]
[1732718848514,16.17209264,239.03,238.86,4.4569]
[1732718848515,16.17209264,239.03,238.86,3.26]
[1732718848811,1.2804,239.02,238.86,3.26]
[1732718849013,2.0917,238.98,238.91,2.0923]
[1732718849317,16.17209264,238.99,238.85,1.3105]
[1732718849505,3.26,239.0,238.82,1.2112]
[1732718849704,3.26,239.0,238.81,19.43209264]
[1732718849705,3.26,239.0,238.83,3.8254156]
[1732718850016,2.0916,238.99,238.93,2.0921]
[1732718850610,1.2804,239.02,238.83,2.5567343]
[1732718850808,1.2804,239.02,238.85,16.17209264]
[1732718851007,1.2804,239.02,238.86,3.82398442]
[1732718851205,2.0914,239.01,238.91,2.0922]
[1732718851407,1.2804,239.02,238.88,1.26708913]
[1732718851610,1.2804,239.02,238.85,2.55645556]
[1732718851811,1.2804,239.02,238.86,3.82363899]
[1732718852005,1.2804,239.02,238.87,1.26718343]
[1732718852205,1.2804,239.02,238.88,1.26718343]
[1732718852411,1.2804,239.02,238.89,1.26718343]
[1732718852609,22.01079264,239.1,238.9,1.26692936]
[1732718852808,1.2385,239.09,238.91,1.2665886]
[1732718853014,2.0909,239.08,239.0,2.0915]
[1732718853213,1.2385,239.09,239.0,2.0915]
[1732718853412,1.2385,239.09,238.91,9.53123761]
[1732718853616,2.091,239.06,238.96,2.0918]
[1732718853815,2.091,239.06,238.91,5.71008017]
[1732718854120,2.091,239.06,239.0,2.0915]
[1732718855011,2.091,239.06,238.99,2.0915]
[1732718855311,2.091,239.06,238.91,5.71008017]
[1732718855517,2.0908,239.08,238.96,2.0918]
[1732718855715,2.0908,239.08,238.91,1.3014]
[1732718855921,1.2385,239.09,238.92,5.03346525]
[1732718856110,1.2385,239.09,238.93,1.26637687]
[1732718856311,1.2385,239.09,238.92,1.2126]
[1732718856715,2.091,239.06,238.92,1.2126]
[1732718857019,1.2385,239.09,238.92,1.2126]
[1732718857408,1.2385,239.09,238.93,1.2257]
[1732718858017,3.3292,239.09,238.93,1.2257]
[1732718859014,2.0909,239.07,238.93,1.2257]
[1732718859214,1.2385,239.09,238.93,1.2257]
[1732718859617,1.2385,239.09,239.0,2.0915]
[1732718859817,1.2385,239.09,238.93,1.2257]
[1732718860214,1.2385,239.09,239.03,2.0911]
[1732718860419,1.2385,239.09,238.93,1.2257]
[1732718861322,2.091,239.06,238.99,2.0916]
[1732718861519,16.17209264,239.06,238.89,1.26650631]
[1732718861723,16.17209264,239.02,238.86,6.98370631]
[1732718861914,18.26339264,239.02,238.86,5.7172]
[1732718862318,18.26339264,239.02,238.95,2.0919]
[1732718862724,2.0916,238.99,238.86,3.26]
[1732718862917,16.17209264,239.02,238.91,2.0922]
[1732718863122,16.17209264,239.02,238.85,3.26]
[1732718863526,16.17209264,239.02,238.93,2.0921]
[1732718863918,16.17209264,239.02,238.84,3.26]
[1732718864119,16.17209264,239.02,238.84,19.43209264]
[1732718864323,16.17209264,239.06,238.88,16.17209264]
[1732718864623,16.17209264,239.06,238.85,3.83016348]
[1732718864827,16.17209264,239.02,238.86,1.26875101]
[1732718865024,19.43209264,239.02,238.84,1.26875101]
[1732718865432,2.0919,238.96,238.83,1.26875101]
[1732718865727,2.0919,238.96,238.84,1.26875101]
[1732718865922,2.0916,238.99,238.93,2.0921]
[1732718866121,19.43209264,239.02,238.84,1.27230752]
[1732718866324,19.43209264,239.02,238.85,1.27230752]
[1732718866522,2.0916,238.99,238.92,2.0921]
[1732718866725,2.0916,238.99,238.84,3.84029212]
[1732718867032,2.0915,239.0,238.9,2.0923]
[1732718867229,2.0915,239.0,238.83,2.56731364]
[1732718867431,2.0915,239.0,238.84,3.84031014]
[1732718867628,3.26,239.02,238.98,2.0916]
[1732718867930,3.26,239.02,238.86,3.84031014]
[1732718868134,3.26,239.02,238.87,3.84031014]
[1732718868435,19.43209264,239.02,238.88,3.84031014]
[1732718868629,19.43209264,239.02,238.84,2.56731364]
[1732718868834,19.43209264,239.02,238.85,1.27383698]
[1732718869035,19.43209264,239.02,238.83,2.56968181]
[1732718869229,2.0918,238.96,238.84,1.27395644]
[1732718869430,19.43209264,239.02,238.82,6.9893]
[1732718869629,19.43209264,239.02,238.83,1.27413742]
[1732718869826,2.0919,238.96,238.82,6.9893]
[1732718870425,5.8329,238.99,238.83,1.27480651]
[1732718870629,3.7413,238.99,238.84,1.27480651]
[1732718870830,3.7413,238.99,238.85,1.27480651]
[1732718871030,3.7413,238.99,238.83,2.57091936]
[1732718871231,3.7413,238.99,238.84,1.27448371]
[1732718871433,3.7413,238.99,238.85,1.27426103]
[1732718871626,3.7413,238.99,238.82,23.16139264]
[1732718871831,3.7413,238.99,238.83,1.27439959]
[1732718872037,2.0919,238.96,238.89,2.0924]
[1732718872239,3.7413,238.99,238.83,3.84600783]
[1732718872443,16.17209264,238.94,238.84,1.27469414]
[1732718872633,2.0923,238.91,238.85,2.0927]
[1732718872839,16.17209264,238.94,238.8,1.27476667]
[1732718873138,2.0921,238.93,238.76,3.26]
[1732718873439,16.17209264,238.94,238.77,3.84688193]
[1732718873640,16.17209264,238.94,238.78,3.84688193]
[1732718873842,16.17209264,238.94,238.79,3.84688193]
[1732718874045,16.17209264,238.94,238.8,1.27502222]
[1732718874250,16.17209264,238.94,238.78,2.57185971]
[1732718874538,2.0921,238.93,238.79,1.27482121]
[1732718874739,3.7413,238.99,238.78,16.17209264]
[1732718874740,16.17209264,238.98,238.78,16.17209264]
[1732718875041,3.7413,238.99,238.79,3.84662106]
[1732718875240,3.7413,238.99,238.8,3.84662106]
[1732718875435,2.0918,238.97,238.81,1.27513126]
[1732718875645,3.7413,238.99,238.8,2.5714898]
[1732718875841,3.7413,238.99,238.81,1.27452055]
[1732718876043,2.0918,238.96,238.82,1.27452055]
[1732718876243,2.0918,238.96,238.78,21.88217281]
[1732718876244,3.7413,238.99,238.83,3.18]
[1732718876639,3.7413,238.99,238.87,2.0925]
[1732718876640,2.0918,238.96,238.87,2.0925]
[1732718876947,3.7413,238.99,238.83,3.18]
[1732718877446,2.0918,238.96,238.83,3.18]
[1732718878440,3.7413,238.99,238.83,3.18]
[1732718878643,5.8329,238.99,238.83,3.18]
[1732718878945,3.7413,238.99,238.83,3.18]
[1732718879250,3.7413,238.99,238.84,1.27348619]
[1732718879451,3.7413,238.99,238.85,1.27348619]
[1732718879646,3.7413,238.99,238.94,2.092]
[1732718879947,3.7413,238.99,238.85,1.2733817]
[1732718880143,3.7413,238.99,238.94,2.092]
[1732718880351,3.7413,238.99,238.85,1.27332689]
[1732718880545,3.7413,238.99,238.84,1.2101]
[1732718880748,3.7413,238.99,238.85,1.2735006]
[1732718880948,3.7413,238.99,238.84,3.78021024]
[1732718881146,3.7413,238.99,238.89,2.0924]
[1732718881346,3.7413,238.99,238.86,3.18]
[1732718882344,13.83158066,238.99,238.86,3.18]
[1732718883348,10.09028066,238.95,238.86,3.18]
[1732718883745,10.09028066,238.95,238.81,3.85311767]
[1732718883948,2.092,238.94,238.88,2.0925]
[1732718884551,12.18228066,238.95,238.87,2.0925]
[1732718884747,12.18228066,238.95,238.81,1.27637595]
[1732718884748,10.09028066,238.95,238.81,1.27637595]
[1732718884951,10.09028066,238.95,238.8,3.18]
[1732718885154,10.09028066,238.95,238.79,2.57380452]
[1732718885345,10.09028066,238.95,238.79,3.18]
[1732718885547,10.09028066,238.92,238.76,3.18]
[1732718885853,10.09028066,238.92,238.77,1.27633885]
[1732718886055,10.09028066,238.92,238.76,3.18]
[1732718886651,10.09028066,238.92,238.77,1.27551989]
[1732718886850,10.09028066,238.92,238.76,3.18]
[1732718887554,2.0923,238.91,238.85,2.0928]
[1732718887955,2.0923,238.91,238.76,3.18]
[1732718888156,10.09028066,238.95,238.78,10.09028066]
[1732718888752,2.0921,238.94,238.78,10.09028066]
[1732718889056,10.09028066,238.95,238.78,10.09028066]
[1732718889551,3.7413,238.99,238.84,10.09028066]
[1732718889750,3.7413,238.99,238.85,3.18]
[1732718890153,3.7413,238.99,238.89,2.0924]
[1732718890356,5.8329,238.99,238.85,4.4742]
[1732718890658,10.09028066,238.98,238.85,4.4742]
[1732718890854,10.09028066,238.98,238.92,2.0921]
[1732718891050,3.7413,238.99,238.87,10.09028066]
[1732718891254,10.09028066,239.04,238.87,10.09028066]
[1732718891557,2.0912,239.03,238.87,10.09028066]
[1732718891853,1.2754,239.03,238.86,2.56613729]
[1732718892065,2.5328,239.02,238.87,11.36245235]
[1732718892251,2.5328,239.02,238.88,1.27217169]
[1732718892453,2.5328,239.02,238.87,10.09028066]
[1732718893061,10.09028066,239.01,238.87,10.09028066]
[1732718893262,10.09028066,239.01,238.86,2.56624186]
[1732718893463,10.09028066,238.98,238.85,5.74516359]
[1732718893665,10.09028066,238.98,238.86,1.27171466]
[1732718893856,10.09028066,238.98,238.85,3.18]
[1732718894055,10.09028066,238.95,238.84,5.74516359]
[1732718894259,12.18258066,238.92,238.83,2.0929]
[1732718894465,3.6744,238.91,238.83,2.0929]
[1732718894668,10.09028066,238.89,238.77,3.18]
[1732718894965,10.09028066,238.89,238.74,0.2309]
[1732718895164,10.09028066,238.86,238.74,0.2309]
[1732718895969,2.0925,238.88,238.78,2.0933]
[1732718896265,2.0925,238.88,238.74,0.2309]
[1732718896658,16.15891608,238.9,238.74,0.2309]
[1732718896858,3.6744,238.91,238.75,1.27310891]
[1732718897060,3.6744,238.91,238.85,2.0928]
[1732718897262,3.6744,238.91,238.75,3.83762861]
[1732718897463,3.6744,238.91,238.78,3.18]
[1732718897766,3.6744,238.91,238.81,2.0931]
[1732718897959,3.6744,238.91,238.78,3.18]
[1732718898370,3.6744,238.91,238.85,2.0928]
[1732718898560,3.6744,238.91,238.78,3.18]
[1732718899166,16.15891608,238.9,238.75,3.838319]
[1732718899472,16.15891608,238.86,238.72,4.45214227]
[1732718899673,16.15891608,238.86,238.72,3.18]
[1732718899975,2.0929,238.84,238.72,3.18]
[1732718900469,16.15891608,238.82,238.69,1.27244004]
[1732718900661,16.15891608,238.78,238.64,29.72353753]
[1732718900865,1.2931,238.77,238.65,3.84236996]
[1732718901063,1.2931,238.77,238.66,3.84079246]
[1732718901264,2.5261,238.81,238.67,1.27322967]
[1732718901472,2.5261,238.81,238.68,1.27322967]
[1732718901677,16.15891608,238.78,238.67,2.96666279]
[1732718901862,1.2931,238.77,238.67,0.3991]
[1732718902168,2.0938,238.74,238.67,0.3991]
[1732718902361,1.2931,238.77,238.67,0.3991]
[1732718903367,16.15891608,238.74,238.57,4.45286851]
[1732718903572,16.15891608,238.7,238.53,1.2727256]
[1732718903765,2.0944,238.67,238.52,1.2727256]
[1732718903964,16.15891608,238.66,238.56,2.0953]
[1732718904268,3.38,238.65,238.51,3.18]
[1732718904671,3.38,238.65,238.47,4.65359955]
[1732718904867,3.38,238.65,238.47,19.53891608]
[1732718905073,3.38,238.65,238.47,20.81251563]
[1732718905268,3.38,238.65,238.47,19.53891608]
[1732718905570,1.2334,238.66,238.51,16.15891608]
[1732718906272,17.39231608,238.66,238.48,1.27359955]
[1732718906471,17.39231608,238.66,238.51,2.0957]
[1732718906672,17.39231608,238.66,238.45,1.27359955]
[1732718906975,2.0946,238.65,238.51,2.0957]
[1732718907171,17.39231608,238.66,238.45,2.47549955]
[1732718907470,19.48681608,238.66,238.54,2.0955]
[1732718907674,17.39231608,238.66,238.49,16.15891608]
[1732718907973,1.2334,238.66,238.49,16.15891608]
[1732718908166,1.2334,238.66,238.53,16.15891608]
[1732718908367,1.3047,238.69,238.57,16.15891608]
[1732718908573,1.3047,238.69,238.66,2.0944]
[1732718908775,1.3047,238.69,238.58,3.38]
[1732718909365,2.5322,238.77,238.58,3.38]
[1732718909574,1.3005,238.76,238.58,5.8447]
[1732718910277,1.3005,238.76,238.58,1.235]
[1732718911173,1.3005,238.76,238.49,1.26867083]
[1732718911372,1.3005,238.76,238.56,16.15891608]
[1732718911578,1.3005,238.76,238.52,19.53891608]
[1732718911886,2.094,238.72,238.52,19.53891608]
[1732718912273,1.3005,238.76,238.56,16.15891608]
[1732718912274,3.38,238.74,238.56,16.15891608]
[1732718913785,1.3005,238.76,238.56,16.15891608]
[1732718914084,2.0937,238.75,238.64,2.0946]
[1732718914271,1.3005,238.76,238.64,2.0946]
[1732718915077,1.3005,238.76,238.56,16.15891608]
[1732718915277,1.3005,238.76,238.6,16.15891608]
[1732718915582,1.3005,238.76,238.64,16.15891608]
[1732718915781,1.3005,238.76,238.65,3.38]
[1732718916377,1.3005,238.76,238.72,2.0939]
[1732718916778,1.3005,238.76,238.65,3.38]
[1732718917582,1.2173,238.82,238.65,3.38]
[1732718917780,5.4727,238.87,238.68,16.15891608]
[1732718917980,3.38,238.87,238.66,2.5208]
[1732718918176,3.38,238.89,238.68,16.15891608]
[1732718918383,16.15891608,238.88,238.66,2.5208]
[1732718918575,16.15891608,238.88,238.75,2.0937]
[1732718918781,2.0929,238.85,238.68,16.15891608]
[1732718918980,16.15891608,238.88,238.68,16.15891608]
[1732718919181,3.38,238.89,238.76,2.0936]
[1732718919378,16.15891608,238.88,238.76,2.0936]
[1732718919883,16.15891608,238.88,238.76,2.0935]
[1732718920084,16.15891608,238.88,238.68,16.15891608]
[1732718920290,5.8106,238.9,238.69,1.2546]
[1732718920586,5.8106,238.9,238.72,16.15891608]
[1732718920783,5.8106,238.9,238.73,3.38]
[1732718920983,5.8106,238.9,238.83,2.0929]
[1732718921388,5.8106,238.9,238.73,3.38]
[1732718921580,5.8106,238.9,238.85,2.0927]
[1732718921884,5.8106,238.9,238.73,3.38]
[1732718922085,2.0926,238.87,238.79,2.0933]
[1732718922785,2.0926,238.87,238.78,2.0934]
[1732718923187,2.4306,238.9,238.77,2.0935]
[1732718923188,3.38,238.89,238.77,2.0935]
[1732718923388,16.15891608,238.88,238.73,3.38]
[1732718923787,16.15891608,238.88,238.73,2.0938]
[1732718923990,16.15891608,238.88,238.69,1.2546]
[1732718924184,2.093,238.84,238.69,1.2546]
[1732718924485,3.38,238.89,238.66,2.5208]
[1732718924687,2.0926,238.88,238.72,16.15891608]
[1732718924882,2.0926,238.88,238.8,2.0932]
[1732718925081,3.38,238.89,238.72,16.15891608]
[1732718925494,2.4306,238.9,238.73,1.2343]
[1732718925788,16.15891608,239.01,238.8,16.15891608]
[1732718925991,3.62,239.0,238.8,16.15891608]
[1732718926187,4.9275,239.0,238.8,16.15891608]
[1732718926593,2.0919,238.95,238.86,2.0927]
[1732718926790,16.15891608,238.97,238.76,16.15891608]
[1732718926986,4.9275,239.0,238.76,16.15891608]
[1732718927183,1.3075,239.0,238.8,16.15891608]
[1732718927382,1.3075,239.0,238.84,16.15891608]
[1732718927596,1.3075,239.0,238.85,3.62]
[1732718927790,1.3075,239.0,238.89,2.0924]
[1732718928095,1.3075,239.0,238.85,4.8945]
[1732718928501,1.3075,239.0,238.95,2.0919]
[1732718928803,1.3075,239.0,238.85,4.8945]
[1732718930697,1.3075,239.0,238.92,2.0922]
[1732718930996,1.3075,239.0,238.85,4.8945]
[1732718931199,17.46641608,239.0,238.85,1.2745]
[1732718931796,17.46641608,239.0,238.79,3.62]
[1732718932101,1.3075,239.0,238.8,1.2677]
[1732718932301,2.0919,238.96,238.8,1.2677]
[1732718932493,1.3075,239.0,238.8,1.2677]
[1732718932699,2.092,238.94,238.85,2.0928]
[1732718933006,1.3075,239.0,238.85,2.0928]
[1732718933208,1.3075,239.0,238.8,1.2677]
[1732718933394,2.0918,238.97,238.86,2.0927]
[1732718933703,1.3075,239.0,238.82,16.15891608]
[1732718934598,1.3075,239.0,238.77,2.486]
[1732718934797,16.15891608,238.96,238.77,2.486]
[1732718935003,3.62,238.95,238.77,2.486]
[1732718935204,2.0923,238.91,238.81,2.0931]
[1732718935502,3.62,238.95,238.77,2.486]
[1732718936100,3.62,238.95,238.82,2.093]
[1732718936402,3.62,238.95,238.77,2.486]
[1732718936604,3.62,238.95,238.79,16.15891608]
[1732718937501,3.62,238.95,238.8,3.62]
[1732718937701,3.62,238.95,238.83,16.15891608]
[1732718937901,3.399,239.0,238.83,16.15891608]
[1732718938303,1.3075,239.0,238.83,16.15891608]
[1732718939498,2.0917,238.98,238.83,16.15891608]
[1732718939700,17.46641608,239.0,238.8,3.62]
[1732718940205,2.0919,238.95,238.8,3.62]
[1732718940400,3.62,238.99,238.8,3.62]
[1732718940797,2.0919,238.96,238.86,2.0927]
[1732718940998,3.62,238.99,238.8,3.62]
[1732718942007,3.62,238.99,238.83,16.15891608]
[1732718942703,1.3075,239.0,238.83,16.15891608]
[1732718942907,1.3075,239.0,238.93,2.092]
[1732718943104,4.5911,239.03,238.87,16.15891608]
[1732718943306,4.5911,239.03,238.88,1.2555]
[1732718943507,2.4999,239.03,238.88,1.2555]
[1732718943800,2.4999,239.03,238.88,6.0723]
[1732718944001,2.4999,239.03,238.96,2.0918]
[1732718944200,2.4999,239.03,238.89,1.3179]
[1732718945201,1.2616,239.07,238.91,16.15891608]
[1732718945402,2.4987,239.11,238.95,16.15891608]
[1732718945902,16.15891608,239.2,238.99,16.15891608]
[1732718946202,3.62,239.19,238.99,19.77891608]
[1732718946401,16.15891608,239.16,238.99,3.62]
[1732718946708,0.19211,239.15,238.99,3.62]
[1732718946897,2.0903,239.14,239.06,2.0909]
[1732718947102,0.19211,239.15,239.06,2.0909]
[1732718947297,0.19211,239.15,238.99,19.77891608]
[1732718947298,0.19211,239.15,239.0,1.2229]
[1732718947502,2.28231,239.15,239.08,2.0908]
[1732718947906,0.19211,239.15,239.0,1.2229]
[1732718948107,2.0903,239.14,239.06,2.0909]
[1732718948303,2.0903,239.14,239.0,1.2229]
[1732718948304,0.19211,239.15,239.0,2.4375]
[1732718948510,0.19211,239.15,239.05,2.091]
[1732718948511,2.0904,239.13,239.05,2.091]
[1732718948712,0.19211,239.15,239.0,2.4375]
[1732718949806,2.0904,239.13,239.06,2.091]
[1732718950006,0.19211,239.15,239.0,2.4375]
[1732718950807,16.15891608,239.12,238.92,16.15891608]
[1732718951012,19.77891608,239.12,238.93,4.9179]
[1732718951212,1.2023,239.11,238.93,4.9179]
[1732718951714,2.5541,239.1,238.93,4.9179]
[1732718951903,2.0909,239.07,239.0,2.0915]
[1732718952104,16.15891608,239.08,238.93,1.2979]
[1732718952615,16.15891608,239.08,238.97,2.0917]
[1732718953006,2.0912,239.03,238.95,2.0918]
[1732718953407,2.0912,239.03,238.93,1.2979]
[1732718953618,2.091,239.05,238.98,2.0916]
[1732718954011,16.15891608,239.08,238.93,1.2979]
[1732718954811,2.0911,239.05,238.93,1.2979]
[1732718955212,16.15891608,239.08,238.93,1.2979]
[1732718955911,16.15891608,239.08,238.97,2.0917]
[1732718955912,2.0911,239.04,238.97,2.0917]
[1732718956119,16.15891608,239.08,238.89,1.3179]
[1732718956318,16.15891608,239.04,238.89,1.3179]
[1732718956508,16.15891608,239.04,238.93,2.092]
[1732718956509,2.0914,239.02,238.93,2.092]
[1732718956713,16.15891608,239.04,238.89,1.3179]
[1732718956913,16.15891608,239.08,238.89,1.3179]
[1732718957314,16.15891608,239.08,238.94,2.0919]
[1732718957315,2.0911,239.05,238.94,2.0919]